lending/lending_fUSD_20240110
["ID","MTS","AMOUNT","RATE_DAILY","PERIOD"]
[311142237,1704929483643,-2000.0,0.000411,2]
[311142238,1704929483653,-250.0,0.000411,2]
[311142239,1704929483662,-662.40182307,0.000411,2]
[311142240,1704929483672,-300.0,0.000411,2]
[311142241,1704929483682,-3000.0,0.000411,2]
[311142242,1704929483691,-1297.0789914,0.000411,5]
[311142243,1704929483701,-1297.0789914,0.000411,5]
[311142244,1704929483710,-566.0,0.00041103,120]
[311142245,1704929483719,-150.0,0.00041103,120]
[311142246,1704929483729,-229.25,0.00041113,120]
[311142247,1704929483738,-566.0,0.00041113,120]
[311142248,1704929483747,-150.0,0.00041113,120]
[311142249,1704929483757,-152.97219112,0.00041118,7]
[311142250,1704929483766,-500.0,0.0004115,2]
[311142251,1704929483775,-278.11,0.00041155,120]
[311142252,1704929483784,-301.62,0.0004119,2]
[311142253,1704929483794,-666.40111,0.00041198,8]
[311142254,1704929483802,-5488.85512743,0.000412,5]
[311142255,1704929483844,-436.32261405,0.000412,5]
[311142256,1704929483857,-1285.55,0.000412,5]
[311142257,1704929483881,-424.26557899,0.00038999,4]
[311142258,1704929483890,-3490.43375089,0.000412,5]
[311142259,1704929483901,-6700.83850763,0.000412,5]
[311142260,1704929483910,-500.0,0.00041205,2]
[311142261,1704929483920,-3000.0,0.00041232,120]
[311142262,1704929483929,-599.99999901,0.00041234,31]
[311142263,1704929483938,-150.0,0.0004124,2]
[311142264,1704929483947,-500.0,0.0004126,2]
[311142265,1704929483956,-2981.0,0.00041262,2]
[311142266,1704929483966,-2981.0,0.00041262,2]
[311142267,1704929483975,-2981.0,0.00041262,2]
[311142268,1704929483984,-2981.0,0.00041262,2]
[311142269,1704929483993,-2883.00801833,0.00041278,29]
[311142270,1704929484003,-1000.0,0.00041287,30]
[311142271,1704929484012,-1000.0,0.00041287,30]
[311142272,1704929484021,-1000.0,0.00041287,30]
[311142273,1704929484031,-1000.0,0.00041287,30]
[311142274,1704929484040,-1000.0,0.00041287,30]
[311142275,1704929484049,-1000.0,0.00041287,30]
[311142276,1704929484059,-1000.0,0.00041287,30]
[311142277,1704929484068,-1000.0,0.00041287,30]
[311142278,1704929484081,-767.1669592,0.00041287,30]
[311142279,1704929484090,-666.40111,0.00041298,6]
[311142280,1704929484100,-2249.493776,0.000413,2]
[311142281,1704929484109,-9767.25,0.000413,7]
[311142282,1704929484118,-12777.6,0.000413,7]
[311142283,1704929484128,-500.0,0.00041315,2]
[311142284,1704929484137,-3223.6,0.00041317,7]
[311142285,1704929484146,-3223.6,0.00041317,7]
[311142286,1704929484156,-604.0,0.00041341,7]
[311142287,1704929484165,-500.0,0.00041369,2]
[311142288,1704929484174,-500.0,0.00041369,30]
[311142289,1704929484183,-643.95,0.00041369,30]
[311142290,1704929484192,-500.0,0.00041369,2]
[311142291,1704929484200,-500.0,0.00041369,30]
[311142292,1704929484209,-969.81,0.00041369,30]
[311142293,1704929484218,-452.56188911,0.00041369,30]
[311142294,1704929484228,-500.0,0.00041369,30]
[311142295,1704929484237,-2076.04,0.00041369,30]
[311142296,1704929484380,-500.0,0.00041369,30]
[311142297,1704929484390,-500.0,0.00041369,30]
[311142298,1704929484399,-500.0,0.00041369,7]
[311142299,1704929484408,-500.0,0.00041369,30]
[311142300,1704929484418,-500.0,0.00041369,30]
[311142301,1704929484427,-500.0,0.00041369,30]
[311142302,1704929484436,-500.0,0.00041369,30]
[311142303,1704929484445,-500.0,0.00041369,30]
[311142304,1704929484455,-500.0,0.00041369,30]
[311142305,1704929484464,-500.0,0.00041369,30]
[311142306,1704929484474,-1391.02,0.00041369,30]
[311142307,1704929484484,-901.49,0.00041369,30]
[311142308,1704929484494,-3000.0,0.00041369,120]
[311142309,1704929484503,-1168.0,0.00041369,30]
[311142310,1704929484513,-1104.48,0.00041369,30]
[311142311,1704929484524,-1403.81,0.00041369,30]
[311142312,1704929484534,-1336.04,0.00041369,30]
[311142313,1704929484544,-500.0,0.00041369,30]
[311142314,1704929484553,-500.0,0.00041369,30]
[311142315,1704929484563,-588.64,0.00041369,30]
[311142316,1704929484575,-6847.32,0.00041369,30]
[311142317,1704929484585,-500.0,0.00041369,30]
[311142318,1704929484595,-1442.46,0.00041369,30]
[311142319,1704929484605,-500.0,0.00041369,30]
[311142320,1704929484614,-791.45,0.00041369,30]
[311142321,1704929484623,-1371.84,0.00041369,30]
[311142322,1704929484633,-444.62,0.00041369,30]
[311142323,1704929484643,-674.38,0.00041369,30]
[311142324,1704929484653,-500.0,0.00041369,30]
[311142325,1704929484662,-1399.35,0.00041369,30]
[311142326,1704929484672,-500.0,0.00041369,30]
[311142327,1704929484681,-500.0,0.00041369,30]
[311142328,1704929484691,-500.0,0.00041369,30]
[311142329,1704929484700,-653.23,0.00041369,30]
[311142330,1704929484710,-500.0,0.00041369,30]
[311142331,1704929484720,-500.0,0.00041369,30]
[311142332,1704929484730,-500.0,0.00041369,30]
[311142333,1704929484740,-694.35,0.00041369,30]
[311142334,1704929484749,-315.07,0.00041369,30]
[311142335,1704929484758,-800.64,0.00041369,30]
[311142336,1704929484767,-545.35,0.00041369,30]
[311142337,1704929484777,-1377.63,0.00041369,30]
[311142338,1704929484786,-986.83,0.00041369,30]
[311142339,1704929484796,-1114.48,0.00041369,30]
[311142340,1704929484805,-500.0,0.00041369,30]
[311142341,1704929484815,-2234.62,0.00041369,30]
[311142342,1704929484831,-887.56,0.00041369,30]
[311142343,1704929484841,-2704.03,0.00041369,30]
[311142344,1704929484850,-500.0,0.00041369,30]
[311142345,1704929484860,-662.58,0.00041369,30]
[311142346,1704929484871,-500.0,0.00041369,30]
[311142347,1704929484881,-562.06,0.00041369,30]
[311142348,1704929484890,-324.93369145,0.00041369,30]
[311142349,1704929484900,-500.0,0.00041369,30]
[311142350,1704929484909,-669.07,0.00041369,30]
[311142351,1704929484919,-1960.32,0.00041369,30]
[311142352,1704929484929,-1476.13,0.00041369,30]
[311142353,1704929484940,-967.46,0.00041369,30]
[311142354,1704929484950,-508.27,0.00041369,30]
[311142355,1704929484959,-670.39,0.00041369,30]
[311142356,1704929484969,-500.0,0.00041369,30]
[311142357,1704929484978,-500.0,0.00041369,30]
[311142358,1704929484988,-1108.5,0.00041369,30]
[311142359,1704929484997,-1012.18,0.00041369,30]
[311142360,1704929485010,-3847.64,0.00041369,30]
[311142361,1704929485019,-1493.63,0.00041369,30]
[311142362,1704929485029,-500.0,0.00041369,30]
[311142363,1704929485038,-1517.38,0.00041369,30]
[311142364,1704929485048,-1089.24,0.00041369,30]
[311142365,1704929485058,-500.0,0.00041369,30]
[311142366,1704929485067,-709.16,0.00041369,30]
[311142367,1704929485082,-999.05,0.00041369,30]
[311142368,1704929485091,-539.92,0.00041369,30]
[311142369,1704929485101,-500.0,0.00041369,30]
[311142370,1704929485110,-2312.53,0.00041369,30]
[311142371,1704929485120,-1938.93,0.00041369,30]
[311142372,1704929485129,-500.0,0.00041369,30]
[311142373,1704929485140,-500.0,0.00041369,30]
[311142374,1704929485150,-1637.04,0.00041369,30]
[311142375,1704929485160,-500.0,0.00041369,30]
[311142376,1704929485170,-500.0,0.00041369,30]
[311142377,1704929485180,-918.68,0.00041369,30]
[311142378,1704929485190,-734.84,0.00041369,30]
[311142379,1704929485200,-500.0,0.00041369,30]
[311142380,1704929485211,-500.0,0.00041369,30]
[311142381,1704929485220,-1045.89,0.00041369,30]
[311142382,1704929485230,-732.31,0.00041369,30]
[311142383,1704929485240,-1070.3,0.00041369,30]
[311142384,1704929485250,-500.0,0.00041369,30]
[311142385,1704929485259,-760.88,0.00041369,30]
[311142386,1704929485268,-526.05,0.00041369,30]
[311142387,1704929485277,-779.41,0.00041369,30]
[311142388,1704929485287,-1339.65,0.00041369,30]
[311142389,1704929485296,-2385.17,0.00041369,30]
[311142390,1704929485306,-500.0,0.00041369,30]
[311142391,1704929485315,-500.0,0.00041369,30]
[311142392,1704929485328,-1000.0,0.0004137,120]
[311142393,1704929485338,-238.0,0.0004137,120]
[311142394,1704929485346,-238.0,0.0004138,120]
[311142395,1704929485356,-238.0,0.0004139,120]
[311142396,1704929485365,-666.40111,0.00041398,8]
[311142397,1704929485374,-666.40111,0.00041398,6]
[311142398,1704929485384,-500.0,0.00041424,2]
[311142399,1704929485393,-801.14,0.00041443,2]
[311142400,1704929485402,-938.59,0.00041443,2]
[311142401,1704929485412,-2000.0,0.00041463,3]
[311142402,1704929485422,-500.0,0.00041479,2]
[311142403,1704929485431,-169.7979624,0.00041497,2]
[311142404,1704929485441,-666.40111,0.00041498,6]
[311142405,1704929485450,-4000.0,0.000415,30]
[311142406,1704929485460,-160.0,0.000415,7]
[311142407,1704929485469,-1513.3597745,0.000415,5]
[311142408,1704929485479,-1000.0,0.000415,7]
[311142409,1704929485488,-3000.0,0.00041506,120]
[311142410,1704929485498,-500.0,0.00041534,2]
[311142411,1704929485507,-10873.61591432,0.00041539,15]
[311142412,1704929485517,-1632.34421428,0.0004154,15]
[311142413,1704929485526,-14154.05930235,0.0004154,15]
[311142414,1704929485535,-1335.14901373,0.00041541,15]
[311142415,1704929485545,-9192.17023377,0.00041541,15]
[311142416,1704929485554,-143121.90729003,0.00041542,15]
[311142417,1704929485604,-126269.81529788,0.00041542,15]
[311142418,1704929485614,-14154.05930235,0.00041542,15]
[311142419,1704929485623,-96974.26627865,0.00041542,15]
[311142420,1704929485632,-14154.05930235,0.00041543,15]
[311142421,1704929485641,-9192.17023377,0.00041544,15]
[311142422,1704929485650,-9845.11537546,0.00041545,15]
[311142423,1704929485659,-42436.99190713,0.00041545,15]
[311142424,1704929485669,-939.6913086,0.00041549,15]
[311142425,1704929485678,-1632.34421428,0.00041549,15]
[311142426,1704929485687,-939.6913086,0.00041549,15]
[311142427,1704929485696,-25453.42139979,0.00041552,15]
[311142428,1704929487403,302.30920902,0.00021787,2]
[311142449,1704929600014,-155.0,0.00022591,2]
[311142452,1704929625796,-270.43448935,0.0002259,2]
[311142454,1704929646858,-150.0,0.00022591,2]
[311142455,1704929653971,-150.0,0.00022591,2]
[311142456,1704929671896,150.0,0.00022493,2]
[311142457,1704929671922,12.92856437,0.00022493,2]
[311142461,1704929687165,-157.11544536,0.00022592,2]
[311142462,1704929687189,-4842.88455464,0.00022592,2]
[311142479,1704930157402,162.92856436,0.00022491,2]
[311142500,1704930444101,-13310.53726789,0.00022589,2]
[311142504,1704930492550,200.1906815,0.00022476,2]
[311142505,1704930500069,1000.0,0.00021909,2]
[311142508,1704930563162,-519.32746472,0.00022579,2]
[311142509,1704930563184,-4746.88969695,0.0002258,2]
[311142510,1704930563206,-376.29059879,0.00022587,2]
[311142511,1704930563228,-238.49921518,0.00022587,2]
[311142512,1704930563248,-219.95090379,0.00022587,2]
[311142513,1704930563270,-155.0,0.00022587,2]
[311142514,1704930563291,-157.9840578,0.00022587,2]
[311142515,1704930563313,-156.0189859,0.00022587,2]
[311142516,1704930563332,-2902.77029221,0.00022588,2]
[311142517,1704930563351,-150.0,0.00022588,2]
[311142518,1704930563372,-16512.6203327,0.00022589,2]
[311142519,1704930563391,-23144.12390046,0.00022589,2]
[311142520,1704930563420,-3000.26578585,0.0002259,2]
[311142521,1704930563442,-1147.94222427,0.0002259,2]
[311142522,1704930563464,-5674.24741686,0.0002259,2]
[311142523,1704930563485,-337.93099748,0.0002259,2]
[311142524,1704930563506,-562.8,0.0002259,2]
[311142525,1704930563526,-5195.4627863,0.00022591,2]
[311142526,1704930563548,-41961.44597771,0.00022592,2]
[311142527,1704930563568,-621.5395,0.00022597,2]
[311142528,1704930563589,-3028.4694,0.00022597,2]
[311142529,1704930563609,-439.75919175,0.00022695,2]
[311142530,1704930563631,-1333.96419802,0.00022695,2]
[311142531,1704930564132,-628.78952152,0.00022695,2]
[311142532,1704930564160,-346.49356319,0.00022695,2]
[311142533,1704930564181,-2941.52758679,0.00022695,2]
[311142534,1704930564202,-249.28402821,0.00022695,2]
[311142535,1704930564223,-244.08411725,0.00022695,2]
[311142536,1704930564244,-217.02178002,0.00022695,2]
[311142537,1704930564264,-155.0,0.00022695,2]
[311142538,1704930564285,-158.43501425,0.00022696,2]
[311142539,1704930564306,-155.0,0.00022696,2]
[311142540,1704930564333,-752.76048375,0.00022696,2]
[311142541,1704930564351,-1404.16,0.00022696,2]
[311142542,1704930564372,-60137.69990502,0.00022697,2]
[311142566,1704930631735,-183.64978834,0.00022597,2]
[311142567,1704930631744,-1087.80258302,0.00022697,2]
[311142569,1704930631755,-1236.19436291,0.00022697,2]
[311142570,1704930631767,-485.6199975,0.00022697,2]
[311142571,1704930631778,-294.6387564,0.00022697,2]
[311142572,1704930631795,-833.93250182,0.00022697,2]
[311142573,1704930631861,-35924.11189333,0.00022697,2]
[311142574,1704930631875,-2863.7354,0.00022697,2]
[311142575,1704930631884,-39780.2113,0.00022697,2]
[311142576,1704930631894,-1000.0,0.00022746,2]
[311142577,1704930631904,-169.4580132,0.00023,2]
[311142578,1704930631913,-155.26544664,0.00024,2]
[311142579,1704930631923,-250.0,0.00024072,2]
[311142580,1704930631932,-167.0,0.00024297,2]
[311142581,1704930631943,-374.03,0.00024666,2]
[311142582,1704930631953,-200.0,0.00025,2]
[311142583,1704930631963,-308.51011258,0.00025,2]
[311142584,1704930631973,-200.0,0.00025178,2]
[311142585,1704930631983,-1000.0,0.00025589,2]
[311142586,1704930631993,-374.03,0.00025644,2]
[311142587,1704930632003,-150.0,0.00026079,2]
[311142588,1704930632013,-374.03,0.00026623,2]
[311142589,1704930632023,-418.21972367,0.00027601,6]
[311142590,1704930632033,-374.03,0.00027601,2]
[311142591,1704930632043,-424.5,0.00027973,2]
[311142592,1704930632053,-1000.0,0.00028432,2]
[311142593,1704930632062,-374.03,0.0002858,2]
[311142594,1704930632072,-819.54313934,0.00029,6]
[311142595,1704930632081,-49823.02236693,0.00029,2]
[311142596,1704930632092,-19079.75843293,0.000295,2]
[311142597,1704930632102,-187.46180191,0.000295,3]
[311142599,1704930632111,-374.03,0.00029558,2]
[311142601,1704930632121,-1300.61,0.00029675,2]
[311142603,1704930632130,-949.21,0.00029846,2]
[311142604,1704930632140,-250.0,0.0002995,2]
[311142605,1704930632150,-250.0,0.00029994,2]
[311142606,1704930632159,-155.0,0.0003,2]
[311142607,1704930632169,-580.75318973,0.0003,2]
[311142608,1704930632178,-3000.0,0.0003,2]
[311142609,1704930632190,-2705.0,0.00030081,2]
[311142610,1704930632200,-424.5,0.00030237,2]
[311142611,1704930632209,-177.29,0.00030456,2]
[311142612,1704930632219,-374.03,0.00030537,2]
[311142613,1704930632232,-2000.0,0.00030624,2]
[311142614,1704930632241,-3650.79,0.00030671,2]
[311142615,1704930632250,-184.46,0.00031,2]
[311142616,1704930632259,-212.6,0.00031162,2]
[311142617,1704930632268,-1000.0,0.00031275,2]
[311142618,1704930632277,-374.03,0.00031515,2]
[311142619,1704930632286,-1805.63504144,0.00032,2]
[311142620,1704930632296,-374.03,0.00032494,2]
[311142621,1704930632305,-424.5,0.00032501,2]
[311142622,1704930632314,-262.86,0.00032877,15]
[311142623,1704930632324,-153.84,0.00032879,2]
[311142624,1704930632334,-27000.0,0.00033,7]
[311142625,1704930632343,-374.03,0.00033472,2]
[311142626,1704930632355,-5000.0,0.000335,10]
[311142627,1704930632366,-153.84,0.00033875,2]
[311142628,1704930632375,-201.60552897,0.00034,2]
[311142629,1704930632385,-1000.0,0.00034,4]
[311142630,1704930632394,-1000.0,0.00034119,2]
[311142631,1704930632403,-212.6,0.00034278,2]
[311142632,1704930632413,-374.03,0.00034451,2]
[311142633,1704930632423,-339.754143,0.0003452,2]
[311142634,1704930632433,-2540.364037,0.0003452,2]
[311142635,1704930632444,-1270.182019,0.0003452,2]
[311142636,1704930632453,-422.852251,0.0003452,2]
[311142637,1704930632462,-1091.01,0.00034521,2]
[311142638,1704930632472,-176.46,0.00034642,2]
[311142639,1704930632481,-180.0,0.00034658,2]
[311142640,1704930632490,-592.21027819,0.00034765,14]
[311142641,1704930632499,-424.5,0.00034765,2]
[311142642,1704930632511,-509.631215,0.00034794,2]
[311142643,1704930632521,-3810.546056,0.00034794,2]
[311142644,1704930632538,-1905.273029,0.00034794,2]
[311142645,1704930632555,-634.278376,0.00034794,2]
[311142646,1704930632564,-153.84,0.00034872,2]
[311142647,1704930632574,-679.508287,0.00034931,2]
[311142648,1704930632582,-5080.728075,0.00034931,2]
[311142649,1704930632591,-2540.364038,0.00034931,2]
[311142650,1704930632600,-845.704502,0.00034931,2]
[311142651,1704930632609,-176.46,0.00034985,2]
[311142652,1704930632618,-166.93,0.0003499,2]
[311142653,1704930632627,-100000.0,0.00035,2]
[311142654,1704930632636,-16417.45689362,0.00035,2]
[311142655,1704930632645,-520.12921631,0.00035,4]
[311142656,1704930632654,-27943.88574687,0.00035,4]
[311142657,1704930632663,-3412.08049558,0.00035,3]
[311142658,1704930632673,-213.14964529,0.00035,2]
[311142659,1704930632682,-376.90495199,0.00035,2]
[311142660,1704930632693,-376.90495199,0.00035,2]
[311142661,1704930632703,-376.90495199,0.00035,2]
[311142662,1704930632712,-376.90495199,0.00035,2]
[311142663,1704930632722,-376.90495199,0.00035,2]
[311142664,1704930632733,-376.90495199,0.00035,2]
[311142665,1704930632743,-376.90495199,0.00035,2]
[311142666,1704930632752,-376.90495199,0.00035,2]
[311142667,1704930632762,-376.90495199,0.00035,2]
[311142668,1704930632771,-376.90495199,0.00035,2]
[311142669,1704930632780,-376.90495199,0.00035,2]
[311142670,1704930632789,-376.90495199,0.00035,2]
[311142671,1704930632799,-376.90495199,0.00035,2]
[311142672,1704930632808,-376.90495199,0.00035,2]
[311142673,1704930632818,-376.90495199,0.00035,2]
[311142674,1704930632828,-376.90495199,0.00035,2]
[311142675,1704930632837,-376.90495199,0.00035,2]
[311142676,1704930632846,-376.90495199,0.00035,2]
[311142677,1704930632855,-376.90495199,0.00035,2]
[311142678,1704930632865,-376.90495199,0.00035,2]
[311142679,1704930632874,-849.385359,0.00035068,2]
[311142680,1704930632884,-6350.910094,0.00035068,2]
[311142681,1704930632894,-3175.455048,0.00035068,2]
[311142682,1704930632903,-1057.130627,0.00035068,2]
[311142683,1704930632912,-176.47,0.00035113,2]
[311142684,1704930632922,-176.46,0.00035328,2]
[311142685,1704930632931,-1189.139503,0.00035342,2]
[311142686,1704930632942,-8891.274132,0.00035342,2]
[311142687,1704930632952,-4445.637067,0.00035342,2]
[311142688,1704930632961,-1479.982878,0.00035342,2]
[311142689,1704930632970,-374.03,0.00035429,2]
[311142690,1704930632980,-1359.016575,0.000356,2]
[311142691,1704930632990,-166.93,0.00035601,2]
[311142692,1704930632999,-16729.17838156,0.00035611,10]
[311142693,1704930633008,-28697.82020501,0.00035611,10]
[311142694,1704930633017,-24963.33444611,0.00035611,10]
[311142695,1704930633027,-780.0,0.00035616,5]
[311142696,1704930633037,-150.0,0.00035616,2]
[311142697,1704930633047,-176.46,0.00035671,2]
[311142698,1704930633057,-1091.01,0.00035798,2]
[311142699,1704930633067,-167.0,0.00035802,2]
[311142700,1704930633077,-153.84,0.00035868,2]
[311142701,1704930633086,-100000.0,0.00036,3]
[311142702,1704930633095,-150.18,0.00036,2]
[311142703,1704930633105,-150.18,0.00036,2]
[311142704,1704930633115,-150.18,0.00036,2]
[311142705,1704930633124,-176.46,0.00036014,2]
[311142706,1704930633134,-150.18,0.00036079,2]
[311142707,1704930633145,-2310.59517019,0.00036089,2]
[311142708,1704930633154,-2310.5951701,0.00036089,2]
[311142709,1704930633164,-2310.5951701,0.00036089,2]
[311142710,1704930633173,-2310.5951701,0.00036089,2]
[311142711,1704930633183,-2310.5951701,0.00036089,2]
[311142712,1704930633194,-2310.5951701,0.00036089,2]
[311142713,1704930633203,-191.21208721,0.00036109,2]
[311142714,1704930633213,-155.374608,0.00036137,2]
[311142715,1704930633222,-6311.0,0.00036264,2]
[311142716,1704930633231,-176.46,0.00036357,2]
[311142717,1704930633240,-374.03,0.00036407,2]
[311142718,1704930633250,-150.0,0.00036554,2]
[311142719,1704930633259,-262.86,0.00036613,15]
[311142720,1704930633269,-176.46,0.000367,2]
[311142721,1704930633277,-2310.5951701,0.00036799,2]
[311142722,1704930633287,-500.0,0.00036827,8]
[311142723,1704930633296,-153.84,0.00036864,2]
[311142724,1704930633305,-15928.1314623,0.0003689,10]
[311142725,1704930633316,-1000.0,0.000369,2]
[311142726,1704930633325,-150.0,0.0003695,30]
[311142727,1704930633335,-847.79656304,0.00036963,14]
[311142728,1704930633344,-17872.59235424,0.00036963,8]
[311142729,1704930633355,-4128.58481367,0.00036963,8]
[311142730,1704930633364,-185.78631661,0.00036963,4]
[311142731,1704930633374,-443.39973815,0.00036963,8]
[311142732,1704930633383,-150.18,0.0003699,2]
[311142733,1704930633393,-150.18,0.0003699,2]
[311142734,1704930633402,-166.93,0.0003699,2]
[311142735,1704930633411,-100000.0,0.00037,4]
[311142736,1704930633421,-155.0,0.00037,4]
[311142737,1704930633430,-308.92091342,0.00037,4]
[311142738,1704930633441,-8548.00800019,0.00037,2]
[311142739,1704930633450,-308.62,0.00037,3]
[311142740,1704930633459,-308.62,0.00037,3]
[311142741,1704930633467,-308.62,0.00037,3]
[311142742,1704930633477,-308.62,0.00037,3]
[311142743,1704930633486,-308.62,0.00037,3]
[311142744,1704930633495,-308.62,0.00037,3]
[311142745,1704930633504,-308.62,0.00037,3]
[311142746,1704930633513,-308.62,0.00037,3]
[311142747,1704930633522,-308.62,0.00037,3]
[311142748,1704930633532,-308.62,0.00037,3]
[311142749,1704930633541,-308.62,0.00037,3]
[311142750,1704930633551,-308.62,0.00037,3]
[311142751,1704930633561,-308.62,0.00037,3]
[311142752,1704930633570,-308.62,0.00037,3]
[311142753,1704930633579,-308.62,0.00037,3]
[311142754,1704930633588,-308.62,0.00037,3]
[311142755,1704930633597,-308.62,0.00037,3]
[311142756,1704930633606,-308.62,0.00037,3]
[311142757,1704930633615,-308.62,0.00037,3]
[311142758,1704930633625,-308.62,0.00037,3]
[311142759,1704930633634,-424.5,0.00037029,2]
[311142760,1704930633643,-152.50784959,0.00037032,7]
[311142761,1704930633653,-155.374608,0.0003704,2]
[311142762,1704930633662,-176.46,0.00037043,2]
[311142763,1704930633671,-1091.01,0.00037075,2]
[311142764,1704930633680,-150.18,0.00037165,2]
[311142765,1704930633692,-389.0,0.00037175,2]
[311142766,1704930633701,-1354.0,0.00037175,2]
[311142767,1704930633711,-448.0,0.00037175,2]
[311142768,1704930633720,-944.0,0.00037175,2]
[311142769,1704930633729,-1848.0,0.00037175,2]
[311142770,1704930633739,-834.0,0.00037175,2]
[311142771,1704930633749,-547.197,0.00037175,2]
[311142772,1704930633758,-700.0,0.00037175,2]
[311142773,1704930633766,-1259.0,0.00037175,2]
[311142774,1704930633776,-1234.0,0.00037175,2]
[311142775,1704930633785,-475.124,0.00037175,2]
[311142776,1704930633793,-1930.0,0.00037175,2]
[311142777,1704930633802,-1138.0,0.00037175,2]
[311142778,1704930633811,-733.124,0.00037175,2]
[311142779,1704930633820,-425.0,0.00037175,2]
[311142780,1704930633829,-507.0,0.00037175,2]
[311142781,1704930633837,-882.998,0.00037175,2]
[311142782,1704930633846,-318.0,0.00037175,2]
[311142783,1704930633855,-275.932,0.00037175,2]
[311142784,1704930633864,-2353.179,0.00037175,2]
[311142785,1704930633873,-4166.0,0.00037175,2]
[311142786,1704930633882,-18404.07014733,0.00037175,2]
[311142787,1704930633896,-5949.05485267,0.00037175,2]
[311142788,1704930633904,-1350.856,0.00037175,2]
[311142789,1704930633912,-3010.614,0.00037175,2]
[311142790,1704930633920,-2985.392,0.00037175,2]
[311142791,1704930633928,-19668.0,0.00037175,2]
[311142792,1704930633939,-2909.381,0.00037175,2]
[311142793,1704930633948,-190.518,0.00037175,2]
[311142794,1704930633956,-5739.53724882,0.000372,7]
[311142795,1704930633964,-809.29907843,0.0003724,4]
[311142796,1704930633973,-152.97219112,0.00037385,7]
[311142797,1704930633983,-176.46,0.00037386,2]
[311142798,1704930633993,-374.03,0.00037386,2]
[311142799,1704930634002,-152.97219112,0.0003739,7]
[311142800,1704930634012,-150.0,0.00037491,2]
[311142801,1704930634022,-150.38353361,0.00037654,7]
[311142802,1704930634031,-150.38353361,0.00037702,7]
[311142803,1704930634040,-166.93,0.00037719,2]
[311142804,1704930634050,-176.46,0.00037729,2]
[311142805,1704930634059,-150.38353361,0.00037787,7]
[311142806,1704930634243,-1000.0,0.000378,2]
[311142807,1704930634252,-185.92843095,0.000378,11]
[311142808,1704930634263,-150.99155914,0.000378,2]
[311142809,1704930634273,-2789.327846,0.000378,2]
[311142810,1704930634282,-153.84,0.00037861,2]
[311142811,1704930634292,-682.03350113,0.00037887,2]
[311142812,1704930634302,-3394.0,0.0003789,3]
[311142813,1704930634311,-150.18,0.0003789,2]
[311142814,1704930634324,-150.18,0.0003789,2]
[311142815,1704930634333,-150.18,0.0003789,2]
[311142816,1704930634343,-150.18,0.0003789,2]
[311142817,1704930634352,-150.18,0.0003789,2]
[311142818,1704930634363,-166.93,0.0003789,2]
[311142819,1704930634372,-1941.28804665,0.00037899,4]
[311142820,1704930634381,-167980.40626393,0.000379,2]
[311142821,1704930634393,-4650.70853001,0.000379,2]
[311142822,1704930634404,-499.99,0.000379,2]
[311142823,1704930634416,-7804.81963993,0.000379,2]
[311142824,1704930634429,-85698.09855413,0.000379,2]
[311142825,1704930634440,-155.374608,0.00037944,2]
[311142826,1704930634449,-150.18,0.00037967,2]
[311142827,1704930634458,-2848.99566111,0.00037977,2]
[311142828,1704930634561,-1836.66893074,0.00037977,2]
[311142829,1704930634573,-411.68315571,0.00037977,2]
[311142830,1704930634584,-327.01287504,0.00037977,2]